bitfinex/quotes_BTCUSD_20260126
["timestamp","ask_amount","ask_price","bid_price","bid_amount"]
[1769387518338,1.40562513,86734.0,86723.0,3.52e-06]
[1769387518920,0.271122,86734.0,86723.0,3.52e-06]
[1769387519134,0.17708,86738.0,86726.0,0.01153056]
[1769387519334,0.02002978,86737.0,86726.0,0.01153056]
[1769387519767,0.02002978,86737.0,86727.0,0.01153043]
[1769387520203,0.02002978,86737.0,86726.0,0.01153056]
[1769387520369,0.02002978,86737.0,86728.0,0.0115303]
[1769387520570,0.02002978,86737.0,86725.0,0.0115307]
[1769387520774,0.02002978,86737.0,86724.0,0.01153083]
[1769387520974,0.02002978,86737.0,86726.0,0.01153056]
[1769387521203,0.02002978,86737.0,86727.0,0.01153043]
[1769387521391,0.02002978,86737.0,86726.0,0.01153056]
[1769387521592,1.11367155,86738.0,86723.0,0.01153448]
[1769387521794,1.11367155,86738.0,86724.0,0.01153083]
[1769387521999,0.271122,86737.0,86723.0,0.01153448]
[1769387522206,1.40562513,86737.0,86723.0,0.01153448]
[1769387522428,1.40562513,86737.0,86723.0,3.52e-06]
[1769387522630,1.40562513,86737.0,86723.0,0.01153448]
[1769387522833,0.24624835,86745.0,86723.0,3.52e-06]
[1769387522834,1.13450313,86735.0,86723.0,3.52e-06]
[1769387523127,0.05764357,86740.0,86722.0,0.0002]
[1769387523128,0.27511483,86729.0,86722.0,3.52e-06]
[1769387523309,1.40205101,86726.0,86720.0,3.52e-06]
[1769387523729,1.12693618,86724.0,86720.0,3.52e-06]
[1769387523989,1.12693618,86722.0,86720.0,3.52e-06]
[1769387524332,0.27511483,86721.0,86720.0,3.52e-06]
[1769387525372,0.00014097,86722.0,86720.0,3.52e-06]
[1769387525802,0.27511483,86737.0,86726.0,0.00069531]
[1769387526107,0.27511483,86737.0,86726.0,0.00030443]
[1769387526473,0.27511483,86737.0,86726.0,1e-08]
[1769387527503,0.28664393,86737.0,86726.0,1e-08]
[1769387527703,0.28664406,86736.0,86726.0,1e-08]
[1769387527921,0.27511483,86731.0,86726.0,1e-08]
[1769387528270,0.27511483,86729.0,86726.0,1e-08]
[1769387530132,0.28664499,86729.0,86726.0,1e-08]
[1769387530350,0.27511483,86729.0,86726.0,1e-08]
[1769387531200,0.17708,86740.0,86726.0,1e-08]
[1769387531443,0.27511483,86739.0,86726.0,1e-08]
[1769387531675,0.27511483,86737.0,86726.0,1e-08]
[1769387532544,0.01152923,86736.0,86726.0,1e-08]
[1769387532813,0.01152963,86733.0,86726.0,1e-08]
[1769387533026,0.28664499,86729.0,86726.0,1e-08]
[1769387533386,0.27511483,86728.0,86726.0,1e-08]
[1769387533811,0.27511483,86728.0,86720.0,3.52e-06]
[1769387534040,0.01153043,86727.0,86720.0,3.52e-06]
[1769387534292,0.01153096,86723.0,86720.0,3.52e-06]
[1769387534452,0.01153096,86723.0,86698.0,0.30630375]
[1769387534453,0.27511483,86718.0,86698.0,0.30630375]
[1769387534648,0.28664646,86718.0,86698.0,0.30630375]
[1769387534853,0.27511483,86718.0,86699.0,0.01153415]
[1769387535016,0.27511483,86718.0,86698.0,0.29476946]
[1769387535230,0.28664646,86718.0,86697.0,0.01163442]
[1769387535431,0.01153176,86717.0,86698.0,0.00804023]
[1769387535641,0.27511483,86707.0,86697.0,0.0001]
[1769387536663,0.34875041,86708.0,86697.0,0.0001]
[1769387537771,0.01153242,86712.0,86697.0,0.0001]
[1769387537974,0.01153269,86710.0,86697.0,0.0001]
[1769387538179,0.23061993,86723.0,86697.0,0.0001]
[1769387538180,0.01153296,86708.0,86697.0,0.0001]
[1769387538385,0.01153296,86708.0,86681.0,0.01153655]
[1769387538386,0.29591085,86705.0,86684.0,1.07389423]
[1769387538596,0.28437749,86703.0,86688.0,0.01153562]
[1769387538801,0.29591031,86709.0,86689.0,1.34375331]
[1769387539030,0.28437749,86709.0,86690.0,0.01153535]
[1769387539270,0.28437749,86709.0,86689.0,1.35528879]
[1769387539271,0.28437749,86709.0,86689.0,1.34375331]
[1769387539700,0.29591031,86709.0,86689.0,1.34375331]
[1769387539913,0.28437749,86707.0,86689.0,1.34375331]
[1769387540163,0.01153322,86706.0,86689.0,1.34375331]
[1769387540404,0.28437749,86704.0,86686.0,0.01153588]
[1769387540608,0.28437749,86704.0,86685.0,0.01153602]
[1769387541014,0.28437749,86704.0,86686.0,0.01153588]
[1769387541221,1.10597567,86703.0,86685.0,0.01153602]
[1769387541432,1.38035316,86703.0,86684.0,0.28199403]
[1769387541607,1.40188691,86702.0,86684.0,0.28199403]
[1769387541809,1.39035316,86702.0,86684.0,0.28199403]
[1769387542010,1.39035316,86702.0,86685.0,0.01153602]
[1769387542218,1.10597567,86701.0,86684.0,0.28199403]
[1769387542442,1.11750956,86701.0,86684.0,0.28199403]
[1769387542704,0.01153402,86700.0,86684.0,0.27199403]
[1769387542888,1.39035316,86701.0,86684.0,0.27199403]
[1769387543458,1.39082411,86701.0,86684.0,0.27199403]
[1769387543664,1.10597567,86700.0,86684.0,0.27199403]
[1769387543863,1.10597567,86700.0,86685.0,0.01153602]
[1769387544076,1.10597567,86700.0,86684.0,1.34558886]
[1769387544279,1.10597567,86700.0,86684.0,1.33405271]
[1769387544484,1.10597567,86700.0,86687.0,0.01153575]
[1769387544690,1.10597567,86700.0,86689.0,0.01153548]
[1769387544890,1.10597567,86700.0,86688.0,0.01153562]
[1769387545236,1.10597567,86700.0,86689.0,0.01153548]
[1769387545373,1.10597567,86700.0,86688.0,0.01153562]
[1769387545594,0.28484844,86701.0,86689.0,0.01153548]
[1769387545834,0.00047095,86701.0,86690.0,0.01153535]
[1769387546454,0.00047095,86701.0,86689.0,0.01153548]
[1769387546669,0.00047095,86701.0,86687.0,0.01153575]
[1769387547071,0.00047095,86701.0,86685.0,0.01153602]
[1769387547324,0.00047095,86701.0,86686.0,0.01153588]
[1769387547552,0.00047095,86701.0,86687.0,0.01153575]
[1769387548124,0.00047095,86701.0,86686.0,0.01153588]
[1769387548298,1.39082411,86701.0,86684.0,6.34558886]
[1769387548696,0.28484844,86701.0,86688.0,0.01153562]
[1769387549167,0.28484844,86701.0,86686.0,1.06205868]
[1769387549369,0.28484844,86701.0,86685.0,0.28169463]
[1769387549545,1.39035316,86700.0,86684.0,5.0]
[1769387550739,1.39035316,86700.0,86684.0,5.01153615]
[1769387550954,1.39035316,86700.0,86686.0,0.01153588]
[1769387551157,1.39035316,86700.0,86688.0,0.01153562]
[1769387551357,0.00047095,86701.0,86689.0,0.01153548]
[1769387551699,0.00047095,86701.0,86690.0,0.01153535]
[1769387551966,0.00047095,86701.0,86688.0,1.0735943]
[1769387552913,0.00047095,86701.0,86687.0,0.28169463]
[1769387553108,0.01153402,86700.0,86684.0,5.0]
[1769387553404,1.11687905,86697.0,86684.0,5.0]
[1769387553614,1.40086272,86697.0,86684.0,5.0]
[1769387553814,1.3893283,86697.0,86684.0,5.0]
[1769387554164,0.27244925,86696.0,86684.0,5.0]
[1769387554391,1.11687905,86694.0,86684.0,5.0]
[1769387554585,1.3893283,86694.0,86684.0,5.0]
[1769387554932,0.27244925,86693.0,86684.0,5.0]
[1769387555131,1.3893283,86693.0,86684.0,5.0]
[1769387556069,0.2729202,86701.0,86684.0,5.0]
[1769387556269,0.00047095,86701.0,86691.0,0.01153522]
[1769387556499,0.00047095,86701.0,86692.0,0.01153508]
[1769387556690,0.00047095,86701.0,86693.0,0.01153495]
[1769387556835,0.00047095,86701.0,86692.0,0.01153508]
[1769387557034,0.00047095,86701.0,86676.0,0.01153721]
[1769387557035,0.00999999,86692.0,86676.0,0.01153721]
[1769387557412,0.01153402,86700.0,86681.0,0.01153655]
[1769387557413,1.11687905,86700.0,86681.0,0.01153655]
[1769387557613,0.27244925,86700.0,86680.0,0.2786806]
[1769387557807,1.3893283,86700.0,86681.0,0.01153655]
[1769387557997,1.3893283,86700.0,86684.0,6.05612087]
[1769387558415,1.3893283,86700.0,86685.0,0.01153602]
[1769387558620,0.27244925,86700.0,86685.0,1.05612087]
[1769387558774,1.3893283,86700.0,86684.0,5.26714392]
[1769387559403,0.01153442,86697.0,86684.0,5.26714392]
[1769387559614,0.01153455,86696.0,86684.0,5.26714392]
[1769387560021,1.3893283,86700.0,86684.0,5.26714392]
[1769387560817,0.00047095,86701.0,86684.0,5.26714392]
[1769387560818,0.00047095,86701.0,86691.0,1.05612087]
[1769387561182,0.00047095,86701.0,86700.0,1.483866]
[1769387561384,0.00047095,86701.0,86700.0,1.48095204]
[1769387561590,0.00047095,86701.0,86700.0,1.47936919]
[1769387562010,1.11735,86701.0,86700.0,1.47936919]
[1769387563900,0.00047095,86701.0,86700.0,1.47936919]
[1769387566145,0.00047095,86701.0,86700.0,1.47921421]
[1769387567004,0.00047095,86701.0,86700.0,1.47898122]
[1769387567633,0.11576157,86701.0,86700.0,1.47898122]
[1769387568049,1.38979925,86701.0,86700.0,1.46898123]
[1769387568255,1.50513118,86701.0,86700.0,1.46898123]
[1769387568873,0.38825213,86701.0,86700.0,1.46898123]
[1769387569706,1.11687905,86704.0,86700.0,1.46898123]
[1769387569910,0.11533502,86703.0,86700.0,1.4691222]
[1769387570126,0.27244925,86709.0,86700.0,1.4691222]
[1769387570332,0.01153189,86716.0,86700.0,1.4691222]
[1769387570333,0.11533672,86708.0,86703.0,0.01]
[1769387570543,0.17716,86716.0,86703.0,0.01]
[1769387570754,0.11533129,86715.0,86703.0,0.01]
[1769387570938,0.11533129,86714.0,86703.0,0.01]
[1769387571149,0.11533129,86713.0,86703.0,0.01]
[1769387571387,0.11533129,86712.0,86703.0,0.01]
[1769387571597,0.11533129,86711.0,86703.0,0.01]
[1769387571807,1.11477212,86716.0,86703.0,0.01]
[1769387572020,0.01153256,86711.0,86700.0,1.4691222]
[1769387572225,1.23010151,86710.0,86700.0,1.4691222]
[1769387572433,1.11477212,86710.0,86700.0,1.4691222]
[1769387572847,1.38722137,86710.0,86700.0,1.4691222]
[1769387573679,0.27244925,86710.0,86700.0,1.4691222]
[1769387573891,0.27244925,86710.0,86700.0,1.46896722]
[1769387574105,1.11477212,86714.0,86700.0,1.46896722]
[1769387574327,1.11477212,86712.0,86700.0,1.46896722]
[1769387574536,0.11532483,86711.0,86700.0,1.46896722]
[1769387574747,0.11532483,86710.0,86700.0,1.46896722]
[1769387574953,1.12630521,86707.0,86700.0,1.46896722]
[1769387575166,1.11477212,86707.0,86700.0,1.46896722]
[1769387575399,0.01153336,86705.0,86700.0,1.46896722]
[1769387575644,0.01153322,86706.0,86700.0,1.46896722]
[1769387575892,1.11477212,86704.0,86700.0,1.46896722]
[1769387576778,0.01153349,86704.0,86700.0,1.46896722]
[1769387576925,1.11477212,86703.0,86700.0,1.46896722]
[1769387577349,0.27244925,86702.0,86700.0,1.46763318]
[1769387577681,1.44489083,86701.0,86700.0,0.02252066]
[1769387577930,1.10421023,86696.0,86684.0,4.99411216]
[1769387578153,1.11588594,86696.0,86684.0,4.99411216]
[1769387578379,1.37680064,86696.0,86684.0,4.99411216]
[1769387579522,1.10435139,86696.0,86684.0,4.99411216]
[1769387579817,0.00014116,86696.0,86684.0,4.99411216]
[1769387583099,1.11574518,86693.0,86684.0,4.99411216]
[1769387583333,1.06415799,86689.0,86684.0,4.99411216]
[1769387583548,0.29242385,86687.0,86684.0,4.99411216]
[1769387583753,0.29242385,86686.0,86684.0,4.99411216]
[1769387583960,0.29242385,86685.0,86684.0,4.99411216]
[1769387584181,0.34878647,86694.0,86684.0,4.99411216]
[1769387584182,1.06415799,86691.0,86684.0,4.99411216]
[1769387584434,0.00014116,86696.0,86684.0,4.99411216]
[1769387585955,0.00014116,86696.0,86687.0,0.01153575]
[1769387586130,0.00014116,86696.0,86686.0,1.21064385]
[1769387586131,0.00014116,86696.0,86686.0,1.44760248]
[1769387586335,0.00014116,86696.0,86686.0,1.4360666]
[1769387586560,0.00014116,86696.0,86687.0,0.01153575]
[1769387586917,0.00014116,86696.0,86686.0,1.4360666]
[1769387588160,0.00014116,86696.0,86689.0,0.01153548]
[1769387588368,0.17716,86706.0,86691.0,0.30617321]
[1769387588604,0.11526884,86705.0,86693.0,0.29463799]
[1769387588802,1.06415799,86711.0,86693.0,0.30617294]
[1769387589167,0.11526481,86710.0,86693.0,1.4360666]
[1769387589404,0.11526481,86709.0,86695.0,0.01153469]
[1769387589631,0.11526481,86708.0,86695.0,1.44760129]
[1769387589870,1.06415799,86711.0,86695.0,1.44760129]
[1769387589871,1.06415799,86711.0,86695.0,1.4360666]
[1769387590046,0.11526193,86710.0,86695.0,1.4360666]
[1769387590205,1.06415799,86711.0,86695.0,1.4360666]
[1769387590402,1.06415799,86711.0,86695.0,1.44760129]
[1769387591074,0.29242385,86726.0,86702.0,0.01153375]
[1769387591269,1.24131799,86721.0,86701.0,0.29463799]
[1769387591560,1.06415799,86717.0,86699.0,0.01153415]
[1769387591735,1.35658184,86715.0,86698.0,1.1529629]
[1769387591949,1.06415799,86714.0,86698.0,1.1529629]
[1769387592116,1.06415799,86714.0,86698.0,1.14142861]
[1769387592317,1.06415799,86714.0,86699.0,0.01153415]
[1769387592516,0.17716,86721.0,86704.0,0.29463799]
[1769387592801,0.11522257,86720.0,86704.0,0.30617148]
[1769387592930,0.11522257,86719.0,86705.0,0.01153336]
[1769387593128,0.17716,86721.0,86705.0,0.01153336]
[1769387593335,0.11521734,86720.0,86707.0,0.01153309]
[1769387593536,1.35658184,86724.0,86709.0,0.01153282]
[1769387593751,0.11520163,86723.0,86709.0,0.01153282]
[1769387593937,0.11520163,86722.0,86708.0,0.01153296]
[1769387594159,0.17716,86726.0,86711.0,0.01153256]
[1769387594413,0.11517315,86725.0,86710.0,0.30617068]
[1769387594624,0.17716,86726.0,86715.0,0.01153203]
[1769387594828,1.35658184,86730.0,86715.0,0.01153203]
[1769387595038,0.11516994,86729.0,86715.0,0.01153203]
[1769387595290,0.11516994,86728.0,86715.0,0.01153203]
[1769387595501,1.35658184,86730.0,86715.0,0.01153203]
[1769387595911,1.35658184,86730.0,86713.0,0.27420629]
[1769387596493,1.35658184,86730.0,86715.0,0.01153203]
[1769387596673,1.35658184,86730.0,86714.0,1.07725863]
[1769387596884,1.35658184,86730.0,86716.0,0.01153189]
[1769387597089,1.06415799,86730.0,86715.0,0.28573832]
[1769387597466,1.06415799,86730.0,86715.0,0.27420629]
[1769387597669,1.06415799,86730.0,86715.0,0.28573832]
[1769387597872,1.06415799,86730.0,86715.0,0.27420629]
[1769387598407,1.06437579,86730.0,86715.0,0.27420629]
[1769387598861,0.01153016,86729.0,86708.0,1.07725863]
[1769387599064,0.2828954,86727.0,86708.0,1.07725863]
[1769387599263,1.10435658,86726.0,86709.0,0.01153282]
[1769387599996,1.10435658,86726.0,86708.0,1.35146492]
[1769387600197,1.10435658,86726.0,86709.0,0.01153282]
[1769387600432,1.10457438,86726.0,86709.0,0.01153282]
[1769387600639,1.10457438,86726.0,86708.0,1.36299788]
[1769387600878,0.2831132,86726.0,86709.0,0.01153282]
[1769387601080,1.38746978,86726.0,86710.0,0.01153269]
[1769387601296,0.0002178,86726.0,86716.0,1.35146492]
[1769387601496,0.0002178,86726.0,86716.0,0.27420629]
[1769387601708,0.0002178,86726.0,86718.0,1.08879026]
[1769387601882,0.0002178,86726.0,86718.0,1.07725863]
[1769387602100,0.0002178,86726.0,86716.0,0.27420629]
[1769387602702,0.2828954,86724.0,86716.0,0.27420629]
[1769387602897,0.83289235,86719.0,86701.0,0.17716]
[1769387603072,0.2828954,86716.0,86701.0,0.17716]
[1769387603536,0.2828954,86715.0,86701.0,0.17716]
[1769387603744,0.83289235,86714.0,86701.0,0.17716]
[1769387603984,0.01153242,86712.0,86696.0,0.27420629]
[1769387604189,0.2828954,86713.0,86698.0,0.17716]
[1769387604364,0.01153242,86712.0,86698.0,0.17716]
[1769387604570,0.43565257,86710.0,86679.0,0.01153681]
[1769387604799,0.01153389,86701.0,86683.0,1.07725863]
[1769387604971,0.43565257,86710.0,86683.0,1.07725863]
[1769387604972,0.01153375,86702.0,86683.0,1.25441863]
[1769387605185,0.29442942,86700.0,86683.0,1.25441863]
[1769387605955,0.2828954,86700.0,86683.0,1.25441863]
[1769387606151,0.2828954,86700.0,86683.0,0.17716]
[1769387606367,0.2828954,86700.0,86685.0,1.07725863]
[1769387606588,0.2828954,86710.0,86691.0,1.07725863]
[1769387606785,0.01153296,86708.0,86693.0,1.07725863]
[1769387607071,0.01153336,86705.0,86685.0,0.17716]
[1769387607286,0.01153269,86710.0,86685.0,0.25364212]
[1769387607407,0.83289235,86704.0,86686.0,1.07725863]
[1769387607625,0.01153282,86709.0,86686.0,1.07725863]
[1769387607626,0.2828954,86703.0,86686.0,1.08879451]
[1769387607820,1.11578775,86703.0,86686.0,1.07725863]
[1769387608669,1.11578775,86703.0,86686.0,1.08879451]
[1769387608894,1.11578775,86703.0,86687.0,1.07725863]
[1769387608895,0.2828954,86703.0,86687.0,1.07725863]
[1769387609284,0.2828954,86703.0,86689.0,0.01153548]
[1769387609506,0.2828954,86703.0,86690.0,1.09740247]
[1769387609727,0.2828954,86703.0,86691.0,0.01153522]
[1769387609874,0.83289235,86706.0,86693.0,0.01153495]
[1769387610282,0.2828954,86708.0,86696.0,0.01153455]
[1769387610493,0.2828954,86708.0,86694.0,1.09741283]
[1769387610770,0.2828954,86708.0,86694.0,1.08879345]
[1769387611722,0.2828954,86717.0,86696.0,0.01153455]
[1769387611971,0.2828954,86716.0,86700.0,0.01153402]
[1769387612210,0.2828954,86716.0,86701.0,1.07725863]
[1769387612688,0.11840412,86716.0,86701.0,1.07725863]
[1769387613142,0.11840412,86716.0,86700.0,0.27420629]
[1769387613593,0.17716,86721.0,86702.0,1.08635294]
[1769387613807,0.34866183,86720.0,86703.0,1.07481919]
[1769387614029,0.17716,86721.0,86703.0,1.07481919]
[1769387614251,0.47213919,86721.0,86703.0,1.07481919]
[1769387614460,1.30503154,86721.0,86703.0,1.07481919]
[1769387614682,1.12787154,86720.0,86703.0,1.07481919]
[1769387615127,1.12787154,86720.0,86703.0,1.08635281]
[1769387615851,1.47653337,86720.0,86703.0,1.08635281]
[1769387616286,1.12787154,86720.0,86703.0,1.08635281]
[1769387616503,1.47653337,86720.0,86703.0,1.08635281]
[1769387617370,0.17716,86721.0,86705.0,0.01153336]
[1769387617605,0.17716,86721.0,86710.0,1.07481919]
[1769387617816,0.00035909,86724.0,86712.0,0.27531517]
[1769387618028,0.00035909,86724.0,86713.0,1.07481919]
[1769387618883,0.00035909,86724.0,86705.0,0.01153336]
[1769387619094,0.34866183,86720.0,86704.0,0.01153349]
[1769387619306,0.34866183,86720.0,86702.0,0.06920243]
[1769387619307,1.18155418,86720.0,86702.0,0.01153375]
[1769387619508,1.18155418,86720.0,86703.0,0.01153362]
[1769387619713,1.02008452,86720.0,86702.0,1.36166811]
[1769387619917,0.83289235,86720.0,86705.0,0.01153336]
[1769387620121,0.83289235,86720.0,86704.0,1.08635268]
[1769387620337,0.83289235,86720.0,86705.0,0.01153336]
[1769387620704,0.29497919,86723.0,86705.0,0.01153336]
[1769387620908,1.12787154,86723.0,86705.0,1.07481919]
[1769387621122,0.29497919,86722.0,86706.0,0.01153322]
[1769387621334,0.29497919,86722.0,86708.0,0.01153296]
[1769387621548,0.29497919,86722.0,86705.0,1.26351255]
[1769387621750,1.12787154,86722.0,86705.0,1.26351255]
[1769387621955,0.9269273,86722.0,86706.0,0.01153322]
[1769387622197,0.9269273,86722.0,86706.0,0.27531517]
[1769387624409,0.93845839,86722.0,86706.0,0.27531517]
[1769387624633,0.9269273,86722.0,86706.0,0.27531517]
[1769387626572,0.9269273,86722.0,86707.0,0.01153309]
[1769387626796,0.00035909,86724.0,86709.0,0.01153282]
[1769387627206,0.00035909,86724.0,86710.0,1.42348102]
[1769387627414,0.00035909,86724.0,86711.0,0.27531517]
[1769387628915,0.00035909,86724.0,86712.0,0.01153242]
[1769387629145,0.00035909,86724.0,86716.0,0.27531517]
[1769387630561,0.00035909,86724.0,86703.0,0.23482792]
[1769387630562,0.83201137,86723.0,86703.0,0.18869362]
[1769387630790,0.83201137,86723.0,86704.0,0.00862066]
[1769387631011,0.83201137,86723.0,86704.0,0.29546932]
[1769387631223,0.83201137,86723.0,86705.0,1.35013436]
[1769387631434,0.83201137,86723.0,86706.0,0.28394341]
[1769387631619,0.83201137,86723.0,86707.0,0.29526736]
[1769387631756,0.83201137,86723.0,86708.0,0.01995196]
[1769387632194,0.00035909,86724.0,86708.0,0.03148492]
[1769387632417,0.00035909,86724.0,86710.0,0.27531517]
[1769387633026,0.00035909,86724.0,86711.0,0.01153256]
[1769387633270,0.00035909,86724.0,86711.0,0.28684773]
[1769387633475,0.00035909,86724.0,86713.0,0.01153229]
[1769387633684,0.00035909,86724.0,86716.0,0.27531517]
[1769387634653,0.00035909,86724.0,86710.0,1.07481919]
[1769387634871,0.00035909,86724.0,86711.0,0.27531517]
[1769387635095,0.00035909,86724.0,86711.0,0.28684773]
[1769387635315,0.00035909,86724.0,86711.0,0.27531517]
[1769387637782,0.00035909,86724.0,86711.0,0.28684773]
[1769387637984,0.00035909,86724.0,86712.0,0.01153242]
[1769387638197,0.00035909,86724.0,86713.0,0.01153229]
[1769387638407,0.00035909,86724.0,86712.0,0.28684759]
[1769387638822,0.00035909,86724.0,86713.0,0.01153229]
[1769387639229,0.00035909,86724.0,86714.0,0.01153216]
[1769387639450,0.00035909,86724.0,86715.0,0.01153203]
[1769387639653,0.00035909,86724.0,86716.0,0.01153189]
[1769387639831,0.00035909,86724.0,86713.0,0.28684746]
[1769387640033,0.00035909,86724.0,86714.0,0.01153216]
[1769387640237,0.00035909,86724.0,86716.0,0.01153189]
[1769387641052,0.00035909,86724.0,86714.0,0.01897151]
[1769387641451,0.00035909,86724.0,86713.0,0.27531517]
[1769387642113,0.00035909,86724.0,86708.0,0.17712]
[1769387642287,0.00035909,86724.0,86708.0,0.45243517]
[1769387642492,0.83237046,86724.0,86708.0,0.45243517]
[1769387642693,0.83237046,86724.0,86708.0,0.46396813]
[1769387642898,0.83237046,86724.0,86708.0,0.45243517]
[1769387643378,0.83237046,86724.0,86704.0,0.05766735]
[1769387643379,0.34866183,86720.0,86701.0,0.01153389]
[1769387643550,0.2723548,86719.0,86704.0,0.17712]
[1769387643765,0.83201137,86718.0,86704.0,0.17712]
[1769387643984,0.83201137,86718.0,86704.0,0.18865349]
[1769387644191,0.83201137,86718.0,86704.0,0.17712]
[1769387644394,0.83201137,86718.0,86704.0,0.18865349]
[1769387644610,0.83201137,86718.0,86705.0,0.01153336]
[1769387645085,0.83201137,86718.0,86704.0,0.17712]
[1769387645881,0.83201137,86718.0,86704.0,0.18865349]
[1769387646094,0.83201137,86718.0,86706.0,0.01153322]
[1769387647062,0.83201137,86718.0,86705.0,0.01153336]
[1769387647266,0.83201137,86718.0,86706.0,0.01153322]
[1769387647444,0.83201137,86718.0,86707.0,0.01153309]
[1769387647925,0.83201137,86718.0,86706.0,0.01153322]
[1769387648131,0.83237046,86724.0,86706.0,0.01153322]
[1769387648336,0.83237046,86724.0,86710.0,0.01153269]
[1769387648511,0.83237046,86724.0,86710.0,0.36019452]
[1769387648751,0.00035909,86724.0,86710.0,0.01153269]
[1769387648952,0.00035909,86724.0,86708.0,0.26374482]
[1769387649378,0.83237046,86724.0,86708.0,0.26374482]
[1769387649584,0.83237046,86724.0,86708.0,0.25221186]
[1769387649735,0.83237046,86724.0,86708.0,0.26374482]
[1769387649957,0.64500117,86724.0,86710.0,0.01153269]
[1769387650167,0.64500117,86724.0,86708.0,0.25221186]
[1769387650390,0.64500117,86724.0,86709.0,0.00889568]
[1769387650811,0.64500117,86724.0,86709.0,0.0204285]
[1769387651013,0.2723548,86726.0,86712.0,0.01153242]
[1769387651222,0.2723548,86726.0,86712.0,0.00014129]
[1769387653327,0.2723548,86726.0,86712.0,0.01167371]
[1769387653528,0.2723548,86726.0,86713.0,0.01153229]
[1769387653754,0.2723548,86726.0,86712.0,0.01167371]
[1769387654357,0.2723548,86726.0,86713.0,0.01153229]
[1769387654888,0.2723548,86726.0,86712.0,0.01167371]
[1769387656729,0.2723548,86726.0,86713.0,0.01153229]
[1769387657550,0.2723548,86726.0,86712.0,0.01167371]
[1769387657956,0.2723548,86726.0,86713.0,0.01153229]
[1769387658376,0.2723548,86726.0,86714.0,0.01153216]
[1769387658561,0.2723548,86726.0,86713.0,0.01153229]
[1769387658981,0.2724736,86726.0,86712.0,0.00014129]
[1769387659643,0.2724736,86726.0,86713.0,0.01153229]
[1769387659844,0.0001188,86726.0,86720.0,0.01153136]
[1769387660092,0.0001188,86726.0,86718.0,1.39412521]
[1769387660534,0.0001188,86726.0,86718.0,0.25103089]
[1769387660734,0.0001188,86726.0,86714.0,1.15462648]
[1769387660937,0.0001188,86726.0,86715.0,0.01153203]
[1769387661579,0.0001188,86726.0,86716.0,0.01153189]
[1769387661976,0.0001188,86726.0,86714.0,1.14309432]
[1769387662426,0.0001188,86726.0,86716.0,0.01153189]
[1769387662635,0.0001188,86726.0,86718.0,0.01153163]
[1769387663089,0.0001188,86726.0,86719.0,0.01153149]
[1769387663308,0.0001188,86726.0,86718.0,0.01153163]
[1769387663742,0.0001188,86726.0,86717.0,1.39412521]
[1769387664198,0.0001188,86726.0,86718.0,0.01153163]
[1769387664420,0.0001188,86726.0,86717.0,1.39412521]
[1769387664421,0.0001188,86726.0,86717.0,0.25103089]
[1769387664637,3.808e-05,86726.0,86717.0,0.26256265]
[1769387665117,3.808e-05,86726.0,86720.0,0.01153136]
[1769387665323,3.808e-05,86726.0,86719.0,0.01153149]
[1769387665952,3.808e-05,86726.0,86718.0,0.01153163]
[1769387666511,3.808e-05,86726.0,86717.0,0.26256265]
[1769387667376,3.808e-05,86726.0,86717.0,0.25103089]
[1769387667787,3.808e-05,86726.0,86712.0,0.00014129]
[1769387669249,3.808e-05,86726.0,86715.0,0.01153203]
[1769387669463,3.808e-05,86726.0,86712.0,0.00014129]
[1769387670016,0.2522027,86721.0,86702.0,0.25103089]
[1769387670244,0.34851063,86712.0,86695.0,0.01153469]
[1769387670481,0.34851063,86712.0,86690.0,0.01153535]
[1769387670482,0.34851063,86705.0,86687.0,0.25103089]
[1769387670707,0.00014121,86712.0,86684.0,6.14874263]
[1769387670708,0.2522027,86696.0,86684.0,4.99411216]
[1769387670900,0.05050882,86697.0,86684.0,4.99411216]
[1769387670901,0.2522027,86693.0,86684.0,4.99411216]
[1769387671552,0.2522027,86691.0,86684.0,4.99411216]
[1769387671951,0.01153415,86699.0,86684.0,4.99411216]
[1769387672220,0.05050882,86695.0,86684.0,4.99411216]
[1769387672642,0.30271152,86695.0,86684.0,4.99411216]
[1769387676129,0.2522027,86695.0,86684.0,4.99411216]
[1769387679383,0.24830769,86693.0,86684.0,4.99411216]
[1769387679792,0.25984264,86693.0,86684.0,4.99411216]
[1769387679991,0.24830769,86691.0,86684.0,4.99411216]
[1769387680193,0.01153548,86689.0,86684.0,4.99065116]
[1769387680405,0.24830769,86686.0,86684.0,4.98327046]
[1769387680631,0.24830769,86686.0,86684.0,4.98288821]
[1769387680832,0.24830769,86686.0,86684.0,4.97558396]
[1769387680988,0.24830769,86686.0,86684.0,4.97166426]
[1769387681198,0.24830769,86686.0,86684.0,4.97128201]
[1769387681404,0.24830769,86686.0,86684.0,4.96390131]
[1769387681612,0.24830769,86686.0,86684.0,4.96005806]
[1769387681815,0.24830769,86693.0,86684.0,4.96005806]
[1769387682455,0.24830769,86692.0,86684.0,4.96005806]
[1769387682656,0.05767149,86698.0,86684.0,4.96005806]
[1769387682657,0.24830769,86699.0,86684.0,4.96005806]
[1769387682856,0.24830769,86697.0,86684.0,4.96005806]
[1769387683057,0.01153455,86696.0,86684.0,4.96005806]
[1769387683399,0.24830769,86695.0,86684.0,4.96005806]
[1769387683694,0.25984238,86695.0,86684.0,4.96005806]
[1769387683927,0.24830769,86695.0,86684.0,4.96005806]
[1769387684341,0.01153495,86693.0,86684.0,4.96005806]
[1769387684510,0.24830769,86692.0,86684.0,4.96005806]
[1769387684897,0.01153508,86692.0,86684.0,4.96005806]
[1769387685078,0.06920981,86693.0,86684.0,4.96005806]
[1769387685309,0.01153548,86689.0,86684.0,4.95967581]
[1769387685476,0.24830769,86688.0,86684.0,4.95229511]
[1769387685686,0.24830769,86688.0,86684.0,4.94845186]
[1769387685891,0.25984331,86688.0,86684.0,4.94468506]
[1769387686248,0.25984344,86687.0,86684.0,4.93707501]
[1769387686525,0.24830769,86687.0,86684.0,4.93284951]
[1769387686760,0.24830769,86687.0,86684.0,4.92539236]
[1769387686978,0.24830769,86687.0,86684.0,4.92501011]
[1769387687197,0.24830769,86687.0,86684.0,4.92116686]
[1769387687400,0.24830769,86687.0,86684.0,4.91386261]
[1769387687598,0.24830769,86687.0,86684.0,4.91370971]
[1769387687733,0.24830769,86687.0,86684.0,4.90625256]
[1769387687936,0.01153415,86699.0,86684.0,4.90240931]
[1769387688143,0.06204297,86699.0,86684.0,4.90240931]
[1769387688348,0.01153482,86694.0,86684.0,4.89894831]
[1769387688544,0.24830769,86695.0,86684.0,4.89894831]
[1769387688770,0.25984251,86694.0,86684.0,4.89894831]
[1769387689146,0.24830769,86692.0,86684.0,4.89894831]
[1769387689630,0.24830769,86692.0,86684.0,4.89548731]
[1769387690001,0.24830769,86692.0,86684.0,4.89202631]
[1769387690002,0.64665148,86691.0,86684.0,4.89202631]
[1769387695973,0.01153429,86698.0,86684.0,4.89202631]
[1769387696178,0.89495917,86699.0,86684.0,4.89202631]
[1769387696335,0.05050882,86697.0,86684.0,4.89202631]
[1769387696542,0.6971603,86697.0,86684.0,4.89202631]
[1769387699411,0.64665148,86697.0,86684.0,4.89202631]